Workbook

Sheet SkillConfig
A1: ID | C1: power | D1: name | E1: dec | H1: attribute | I1: icon | J1: scriptName | K1: IDGroup | L1: timelineName | M1: cd | N1: SkillType | O1: level | P1: effectValue | Q1: intensifierIndex | R1: addPropertyType | S1: addPropertyValue
A2: int | C2: float | D2: int | E2: int | H2: int | I2: string | J2: string | K2: int | L2: string | M2: int | N2: int | O2: int | P2: float[] | Q2: int[] | R2: int[] | S2: float[]
A4: 技能ID IDGroup+技能等级 901开头是法宝技能 | C4: 功法强度 基于标准强度的百分比 50=50% | D4: 名称语言表ID | E4: 描述语言表ID | H4: 技能属性 1=金 2=水 4=木 8=火 16=土 | I4: 图标 | J4: 脚本名称 | K4: 技能组 | L4: 技能的timeline表现，没得就不填，这个可以程序填 | M4: 技能在转盘的触发圈速 | N4: 技能类型: 1= 基础 2=增强型技能 3=法宝技能 4=大道 | O4: 等级 | P4: 效果值 | Q4: 允许被加强的效果下表 | R4: 属性ID表内对应 101=生命百分比 102=攻击百分比 103=防御百分比 | S4: 具体效果值 | U4: 总伤害 | V4: 效果值 | W4: 数量
B5: 英雄功法区域
A6: =K6*10+O6-1 -> 10010 | C6: 100 | F6: 剑诀 | G6: 身体周围幻化出{0}柄细剑，每柄细剑对敌人照成{1}%伤害，如果敌人有debuf状态，则虚剑伤害提升{2}% | H6: 1 | I6: =CONCATENATE("icon_skill_",INT(A6*0.1)) -> icon_skill_1001 | J6: =CONCATENATE("S",K6) -> S1001 | K6: 1001 | L6: jianjue_timeline_TD | M6: 1 | N6: 1 | O6: 1 | P6: 6;60;30 | Q6: 2 | R6: 101 | S6: 1 | T6: =U6*1.2 -> 75.6 | U6: =W6*V6 -> 63 | V6: 9 | W6: 7
A7: =K7*10+O7-1 -> 10011 | C7: 110 | F7: 剑诀 | G7: 身体周围幻化出{0}柄细剑，每柄细剑对敌人照成{1}%伤害，如果敌人有debuf状态，则虚剑伤害提升{2}% | H7: 1 | I7: icon_skill_1001 | J7: =CONCATENATE("S",K7) -> S1001 | K7: 1001 | L7: jianjue_timeline_TD | M7: 1 | N7: 1 | O7: 2 | P7: 6;60;30 | Q7: 2 | R7: 101 | S7: 2 | T7: 75.6 | U7: 63 | V7: 9 | W7: 7
A8: 10012 | C8: 120 | F8: 剑诀 | G8: 身体周围幻化出{0}柄细剑，每柄细剑对敌人照成{1}%伤害，如果敌人有debuf状态，则虚剑伤害提升{2}% | H8: 1 | I8: icon_skill_1001 | J8: S1001 | K8: 1001 | L8: jianjue_timeline_TD | M8: 1 | N8: 1 | O8: 3 | P8: 6;60;30 | Q8: 2 | R8: 101 | S8: 3 | T8: 75.6 | U8: 63 | V8: 9 | W8: 7
A9: 10013 | C9: 130 | F9: 剑诀 | G9: 身体周围幻化出{0}柄细剑，每柄细剑对敌人照成{1}%伤害，如果敌人有debuf状态，则虚剑伤害提升{2}% | H9: 1 | I9: icon_skill_1001 | J9: S1001 | K9: 1001 | L9: jianjue_timeline_TD | M9: 1 | N9: 1 | O9: 4 | P9: 6;60;30 | Q9: 2 | R9: 101 | S9: 4 | T9: 75.6 | U9: 63 | V9: 9 | W9: 7
A10: 10014 | C10: 140 | F10: 剑诀 | G10: 身体周围幻化出{0}柄细剑，每柄细剑对敌人照成{1}%伤害，如果敌人有debuf状态，则虚剑伤害提升{2}% | H10: 1 | I10: icon_skill_1001 | J10: S1001 | K10: 1001 | L10: jianjue_timeline_TD | M10: 1 | N10: 1 | O10: 5 | P10: 6;60;30 | Q10: 2 | R10: 101 | S10: 5 | T10: 75.6 | U10: 63 | V10: 9 | W10: 7
A11: 10015 | C11: 150 | F11: 剑诀 | G11: 身体周围幻化出{0}柄细剑，每柄细剑对敌人照成{1}%伤害，如果敌人有debuf状态，则虚剑伤害提升{2}% | H11: 1 | I11: icon_skill_1001 | J11: S1001 | K11: 1001 | L11: jianjue_timeline_TD | M11: 1 | N11: 1 | O11: 6 | P11: 6;60;30 | Q11: 2 | R11: 101 | S11: 6 | T11: 75.6 | U11: 63 | V11: 9 | W11: 7
A12: 10016 | C12: 160 | F12: 剑诀 | G12: 身体周围幻化出{0}柄细剑，每柄细剑对敌人照成{1}%伤害，如果敌人有debuf状态，则虚剑伤害提升{2}% | H12: 1 | I12: icon_skill_1001 | J12: S1001 | K12: 1001 | L12: jianjue_timeline_TD | M12: 1 | N12: 1 | O12: 7 | P12: 6;60;30 | Q12: 2 | R12: 101 | S12: 7 | T12: 75.6 | U12: 63 | V12: 9 | W12: 7
A13: 10017 | C13: 170 | F13: 剑诀 | G13: 身体周围幻化出{0}柄细剑，每柄细剑对敌人照成{1}%伤害，如果敌人有debuf状态，则虚剑伤害提升{2}% | H13: 1 | I13: icon_skill_1001 | J13: S1001 | K13: 1001 | L13: jianjue_timeline_TD | M13: 1 | N13: 1 | O13: 8 | P13: 6;60;30 | Q13: 2 | R13: 101 | S13: 8 | T13: 75.6 | U13: 63 | V13: 9 | W13: 7
A14: 10018 | C14: 180 | F14: 剑诀 | G14: 身体周围幻化出{0}柄细剑，每柄细剑对敌人照成{1}%伤害，如果敌人有debuf状态，则虚剑伤害提升{2}% | H14: 1 | I14: icon_skill_1001 | J14: S1001 | K14: 1001 | L14: jianjue_timeline_TD | M14: 1 | N14: 1 | O14: 9 | P14: 6;60;30 | Q14: 2 | R14: 101 | S14: 9 | T14: 75.6 | U14: 63 | V14: 9 | W14: 7
A15: 10019 | C15: 190 | F15: 剑诀 | G15: 身体周围幻化出{0}柄细剑，每柄细剑对敌人照成{1}%伤害，如果敌人有debuf状态，则虚剑伤害提升{2}% | H15: 1 | I15: icon_skill_1001 | J15: S1001 | K15: 1001 | L15: jianjue_timeline_TD | M15: 1 | N15: 1 | O15: 10 | P15: 6;60;30 | Q15: 2 | R15: 101 | S15: 10 | T15: 75.6 | U15: 63 | V15: 9 | W15: 7
A17: =K17*10+O17-1 -> 20010 | C17: 100 | F17: 烈焰斩 | G17: 向前方发出1柄剑，对敌人造成{0}%火系伤害，并有{1}%的概率施加1层灼热 | H17: 2 | I17: icon_skill_10001 | J17: =CONCATENATE("S",K17) -> S2001 | K17: 2001 | L17: lieyanjian_timeline_TD | M17: 1 | N17: 1 | O17: 1 | P17: 360;48 | Q17: 2 | U17: =W17*V17 -> 100 | V17: 100 | W17: 1
A18: =K18*10+O18-1 -> 20011 | C18: 110 | F18: 烈焰斩 | G18: 向前方发出1柄剑，对敌人造成{0}%火系伤害，并有{1}%的概率施加1层灼热 | H18: 2 | I18: icon_skill_10001 | J18: =CONCATENATE("S",K18) -> S2001 | K18: 2001 | L18: lieyanjian_timeline_TD | M18: 1 | N18: 1 | O18: 2 | P18: 360;48 | Q18: 2 | U18: 100 | V18: 100 | W18: 1
A19: 20012 | C19: 120 | F19: 烈焰斩 | G19: 向前方发出1柄剑，对敌人造成{0}%火系伤害，并有{1}%的概率施加1层灼热 | H19: 2 | I19: icon_skill_10001 | J19: S2001 | K19: 2001 | L19: lieyanjian_timeline_TD | M19: 1 | N19: 1 | O19: 3 | P19: 360;48 | Q19: 2 | U19: 100 | V19: 100 | W19: 1
A20: 20013 | C20: 130 | F20: 烈焰斩 | G20: 向前方发出1柄剑，对敌人造成{0}%火系伤害，并有{1}%的概率施加1层灼热 | H20: 2 | I20: icon_skill_10001 | J20: S2001 | K20: 2001 | L20: lieyanjian_timeline_TD | M20: 1 | N20: 1 | O20: 4 | P20: 360;48 | Q20: 2 | U20: 100 | V20: 100 | W20: 1
A21: 20014 | C21: 140 | F21: 烈焰斩 | G21: 向前方发出1柄剑，对敌人造成{0}%火系伤害，并有{1}%的概率施加1层灼热 | H21: 2 | I21: icon_skill_10001 | J21: S2001 | K21: 2001 | L21: lieyanjian_timeline_TD | M21: 1 | N21: 1 | O21: 5 | P21: 360;48 | Q21: 2 | U21: 100 | V21: 100 | W21: 1
A22: 20015 | C22: 150 | F22: 烈焰斩 | G22: 向前方发出1柄剑，对敌人造成{0}%火系伤害，并有{1}%的概率施加1层灼热 | H22: 2 | I22: icon_skill_10001 | J22: S2001 | K22: 2001 | L22: lieyanjian_timeline_TD | M22: 1 | N22: 1 | O22: 6 | P22: 360;48 | Q22: 2 | U22: 100 | V22: 100 | W22: 1
A23: 20016 | C23: 160 | F23: 烈焰斩 | G23: 向前方发出1柄剑，对敌人造成{0}%火系伤害，并有{1}%的概率施加1层灼热 | H23: 2 | I23: icon_skill_10001 | J23: S2001 | K23: 2001 | L23: lieyanjian_timeline_TD | M23: 1 | N23: 1 | O23: 7 | P23: 360;48 | Q23: 2 | U23: 100 | V23: 100 | W23: 1
A24: 20017 | C24: 170 | F24: 烈焰斩 | G24: 向前方发出1柄剑，对敌人造成{0}%火系伤害，并有{1}%的概率施加1层灼热 | H24: 2 | I24: icon_skill_10001 | J24: S2001 | K24: 2001 | L24: lieyanjian_timeline_TD | M24: 1 | N24: 1 | O24: 8 | P24: 360;48 | Q24: 2 | U24: 100 | V24: 100 | W24: 1
A25: 20018 | C25: 180 | F25: 烈焰斩 | G25: 向前方发出1柄剑，对敌人造成{0}%火系伤害，并有{1}%的概率施加1层灼热 | H25: 2 | I25: icon_skill_10001 | J25: S2001 | K25: 2001 | L25: lieyanjian_timeline_TD | M25: 1 | N25: 1 | O25: 9 | P25: 360;48 | Q25: 2 | U25: 100 | V25: 100 | W25: 1
A26: 20019 | C26: 190 | F26: 烈焰斩 | G26: 向前方发出1柄剑，对敌人造成{0}%火系伤害，并有{1}%的概率施加1层灼热 | H26: 2 | I26: icon_skill_10001 | J26: S2001 | K26: 2001 | L26: lieyanjian_timeline_TD | M26: 1 | N26: 1 | O26: 10 | P26: 360;48 | Q26: 2 | U26: 100 | V26: 100 | W26: 1
A28: =K28*10+O28-1 -> 11010 | C28: 100 | F28: 瘴影千丝术 | G28: 发出{0}条细细的毒针，每颗针对敌人照成{1}%金系伤害，每颗针有{2}%概率施加1层毒 | H28: 1 | I28: icon_skill_40001 | J28: =CONCATENATE("S",K28) -> S1101 | K28: 1101 | L28: duzhen_timeline_TD | M28: 1 | N28: 1 | O28: 1 | P28: 2;180;24 | Q28: 2 | U28: =W28*V28 -> 40 | V28: 2 | W28: 20
A29: =K29*10+O29-1 -> 11011 | C29: 110 | F29: 瘴影千丝术 | G29: 发出{0}条细细的毒针，每颗针对敌人照成{1}%金系伤害，每颗针有{2}%概率施加1层毒 | H29: 1 | I29: icon_skill_40001 | J29: =CONCATENATE("S",K29) -> S1101 | K29: 1101 | L29: duzhen_timeline_TD | M29: 1 | N29: 1 | O29: 2 | P29: 2;180;24 | Q29: 2 | U29: 40 | V29: 2 | W29: 20
A30: 11012 | C30: 120 | F30: 瘴影千丝术 | G30: 发出{0}条细细的毒针，每颗针对敌人照成{1}%金系伤害，每颗针有{2}%概率施加1层毒 | H30: 1 | I30: icon_skill_40001 | J30: S1101 | K30: 1101 | L30: duzhen_timeline_TD | M30: 1 | N30: 1 | O30: 3 | P30: 2;180;24 | Q30: 2 | U30: 40 | V30: 2 | W30: 20
A31: 11013 | C31: 130 | F31: 瘴影千丝术 | G31: 发出{0}条细细的毒针，每颗针对敌人照成{1}%金系伤害，每颗针有{2}%概率施加1层毒 | H31: 1 | I31: icon_skill_40001 | J31: S1101 | K31: 1101 | L31: duzhen_timeline_TD | M31: 1 | N31: 1 | O31: 4 | P31: 2;180;24 | Q31: 2 | U31: 40 | V31: 2 | W31: 20
A32: 11014 | C32: 140 | F32: 瘴影千丝术 | G32: 发出{0}条细细的毒针，每颗针对敌人照成{1}%金系伤害，每颗针有{2}%概率施加1层毒 | H32: 1 | I32: icon_skill_40001 | J32: S1101 | K32: 1101 | L32: duzhen_timeline_TD | M32: 1 | N32: 1 | O32: 5 | P32: 2;180;24 | Q32: 2 | U32: 40 | V32: 2 | W32: 20
A33: 11015 | C33: 150 | F33: 瘴影千丝术 | G33: 发出{0}条细细的毒针，每颗针对敌人照成{1}%金系伤害，每颗针有{2}%概率施加1层毒 | H33: 1 | I33: icon_skill_40001 | J33: S1101 | K33: 1101 | L33: duzhen_timeline_TD | M33: 1 | N33: 1 | O33: 6 | P33: 2;180;24 | Q33: 2 | U33: 40 | V33: 2 | W33: 20
A34: 11016 | C34: 160 | F34: 瘴影千丝术 | G34: 发出{0}条细细的毒针，每颗针对敌人照成{1}%金系伤害，每颗针有{2}%概率施加1层毒 | H34: 1 | I34: icon_skill_40001 | J34: S1101 | K34: 1101 | L34: duzhen_timeline_TD | M34: 1 | N34: 1 | O34: 7 | P34: 2;180;24 | Q34: 2 | U34: 40 | V34: 2 | W34: 20
A35: 11017 | C35: 170 | F35: 瘴影千丝术 | G35: 发出{0}条细细的毒针，每颗针对敌人照成{1}%金系伤害，每颗针有{2}%概率施加1层毒 | H35: 1 | I35: icon_skill_40001 | J35: S1101 | K35: 1101 | L35: duzhen_timeline_TD | M35: 1 | N35: 1 | O35: 8 | P35: 2;180;24 | Q35: 2 | U35: 40 | V35: 2 | W35: 20
A36: 11018 | C36: 180 | F36: 瘴影千丝术 | G36: 发出{0}条细细的毒针，每颗针对敌人照成{1}%金系伤害，每颗针有{2}%概率施加1层毒 | H36: 1 | I36: icon_skill_40001 | J36: S1101 | K36: 1101 | L36: duzhen_timeline_TD | M36: 1 | N36: 1 | O36: 9 | P36: 2;180;24 | Q36: 2 | U36: 40 | V36: 2 | W36: 20
A37: 11019 | C37: 190 | F37: 瘴影千丝术 | G37: 发出{0}条细细的毒针，每颗针对敌人照成{1}%金系伤害，每颗针有{2}%概率施加1层毒 | H37: 1 | I37: icon_skill_40001 | J37: S1101 | K37: 1101 | L37: duzhen_timeline_TD | M37: 1 | N37: 1 | O37: 10 | P37: 2;180;24 | Q37: 2 | U37: 40 | V37: 2 | W37: 20
A39: =K39*10+O39-1 -> 12010 | C39: 100 | F39: 雾隐千流法 | G39: 身体散发出一团迷雾。从迷雾中飞出{0}个冰球，每个冰球对敌人照成{1}%伤害，并有{2}%概率施加1层寒气 | H39: 4 | I39: icon_skill_40005 | J39: =CONCATENATE("S",K39) -> S1201 | K39: 1201 | L39: bingqiu_timeline_TD | M39: 1 | N39: 1 | O39: 1 | P39: 3;120;16 | Q39: 2 | U39: =W39*V39 -> 51 | V39: 17 | W39: 3
A40: =K40*10+O40-1 -> 12011 | C40: 110 | F40: 雾隐千流法 | G40: 身体散发出一团迷雾。从迷雾中飞出{0}个冰球，每个冰球对敌人照成{1}%伤害，并有{2}%概率施加1层寒气 | H40: 4 | I40: icon_skill_40005 | J40: =CONCATENATE("S",K40) -> S1201 | K40: 1201 | L40: bingqiu_timeline_TD | M40: 1 | N40: 1 | O40: 2 | P40: 3;120;16 | Q40: 2 | U40: =W40*V40 -> 51 | V40: 17 | W40: 3
A41: 12012 | C41: 120 | F41: 雾隐千流法 | G41: 身体散发出一团迷雾。从迷雾中飞出{0}个冰球，每个冰球对敌人照成{1}%伤害，并有{2}%概率施加1层寒气 | H41: 4 | I41: icon_skill_40005 | J41: S1201 | K41: 1201 | L41: bingqiu_timeline_TD | M41: 1 | N41: 1 | O41: 3 | P41: 3;120;16 | Q41: 2 | U41: =W41*V41 -> 51 | V41: 17 | W41: 3
A42: 12013 | C42: 130 | F42: 雾隐千流法 | G42: 身体散发出一团迷雾。从迷雾中飞出{0}个冰球，每个冰球对敌人照成{1}%伤害，并有{2}%概率施加1层寒气 | H42: 4 | I42: icon_skill_40005 | J42: S1201 | K42: 1201 | L42: bingqiu_timeline_TD | M42: 1 | N42: 1 | O42: 4 | P42: 3;120;16 | Q42: 2 | U42: =W42*V42 -> 51 | V42: 17 | W42: 3
A43: 12014 | C43: 140 | F43: 雾隐千流法 | G43: 身体散发出一团迷雾。从迷雾中飞出{0}个冰球，每个冰球对敌人照成{1}%伤害，并有{2}%概率施加1层寒气 | H43: 4 | I43: icon_skill_40005 | J43: S1201 | K43: 1201 | L43: bingqiu_timeline_TD | M43: 1 | N43: 1 | O43: 5 | P43: 3;120;16 | Q43: 2 | U43: =W43*V43 -> 51 | V43: 17 | W43: 3
A44: 12015 | C44: 150 | F44: 雾隐千流法 | G44: 身体散发出一团迷雾。从迷雾中飞出{0}个冰球，每个冰球对敌人照成{1}%伤害，并有{2}%概率施加1层寒气 | H44: 4 | I44: icon_skill_40005 | J44: S1201 | K44: 1201 | L44: bingqiu_timeline_TD | M44: 1 | N44: 1 | O44: 6 | P44: 3;120;16 | Q44: 2 | U44: =W44*V44 -> 51 | V44: 17 | W44: 3
A45: 12016 | C45: 160 | F45: 雾隐千流法 | G45: 身体散发出一团迷雾。从迷雾中飞出{0}个冰球，每个冰球对敌人照成{1}%伤害，并有{2}%概率施加1层寒气 | H45: 4 | I45: icon_skill_40005 | J45: S1201 | K45: 1201 | L45: bingqiu_timeline_TD | M45: 1 | N45: 1 | O45: 7 | P45: 3;120;16 | Q45: 2 | U45: =W45*V45 -> 51 | V45: 17 | W45: 3
A46: 12017 | C46: 170 | F46: 雾隐千流法 | G46: 身体散发出一团迷雾。从迷雾中飞出{0}个冰球，每个冰球对敌人照成{1}%伤害，并有{2}%概率施加1层寒气 | H46: 4 | I46: icon_skill_40005 | J46: S1201 | K46: 1201 | L46: bingqiu_timeline_TD | M46: 1 | N46: 1 | O46: 8 | P46: 3;120;16 | Q46: 2 | U46: =W46*V46 -> 51 | V46: 17 | W46: 3
A47: 12018 | C47: 180 | F47: 雾隐千流法 | G47: 身体散发出一团迷雾。从迷雾中飞出{0}个冰球，每个冰球对敌人照成{1}%伤害，并有{2}%概率施加1层寒气 | H47: 4 | I47: icon_skill_40005 | J47: S1201 | K47: 1201 | L47: bingqiu_timeline_TD | M47: 1 | N47: 1 | O47: 9 | P47: 3;120;16 | Q47: 2 | U47: =W47*V47 -> 51 | V47: 17 | W47: 3
A48: 12019 | C48: 190 | F48: 雾隐千流法 | G48: 身体散发出一团迷雾。从迷雾中飞出{0}个冰球，每个冰球对敌人照成{1}%伤害，并有{2}%概率施加1层寒气 | H48: 4 | I48: icon_skill_40005 | J48: S1201 | K48: 1201 | L48: bingqiu_timeline_TD | M48: 1 | N48: 1 | O48: 10 | P48: 3;120;16 | Q48: 2 | U48: =W48*V48 -> 51 | V48: 17 | W48: 3
A50: =K50*10+O50-1 -> 13010 | C50: 100 | F50: 碧落幽冥劲 | G50: 发出{0}道寒气冰锥，对敌人照成{1}%伤害，每到冰锥有{2}%概率对敌人施加1层寒气 | H50: 4 | I50: icon_skill_40002 | J50: =CONCATENATE("S",K50) -> S1301 | K50: 1301 | L50: bingzhui_timeline_TD | M50: 1 | N50: 1 | O50: 1 | P50: 3;120;16 | Q50: 2 | U50: =W50*V50 -> 80 | V50: 20 | W50: 4
A51: =K51*10+O51-1 -> 13011 | C51: 110 | F51: 碧落幽冥劲 | G51: 发出{0}道寒气冰锥，对敌人照成{1}%伤害，每到冰锥有{2}%概率对敌人施加1层寒气 | H51: 4 | I51: icon_skill_40002 | J51: =CONCATENATE("S",K51) -> S1301 | K51: 1301 | L51: bingzhui_timeline_TD | M51: 1 | N51: 1 | O51: 2 | P51: 3;120;16 | Q51: 2 | U51: =W51*V51 -> 80 | V51: 20 | W51: 4
A52: 13012 | C52: 120 | F52: 碧落幽冥劲 | G52: 发出{0}道寒气冰锥，对敌人照成{1}%伤害，每到冰锥有{2}%概率对敌人施加1层寒气 | H52: 4 | I52: icon_skill_40002 | J52: S1301 | K52: 1301 | L52: bingzhui_timeline_TD | M52: 1 | N52: 1 | O52: 3 | P52: 3;120;16 | Q52: 2 | U52: =W52*V52 -> 80 | V52: 20 | W52: 4
A53: 13013 | C53: 130 | F53: 碧落幽冥劲 | G53: 发出{0}道寒气冰锥，对敌人照成{1}%伤害，每到冰锥有{2}%概率对敌人施加1层寒气 | H53: 4 | I53: icon_skill_40002 | J53: S1301 | K53: 1301 | L53: bingzhui_timeline_TD | M53: 1 | N53: 1 | O53: 4 | P53: 3;120;16 | Q53: 2 | U53: =W53*V53 -> 80 | V53: 20 | W53: 4
A54: 13014 | C54: 140 | F54: 碧落幽冥劲 | G54: 发出{0}道寒气冰锥，对敌人照成{1}%伤害，每到冰锥有{2}%概率对敌人施加1层寒气 | H54: 4 | I54: icon_skill_40002 | J54: S1301 | K54: 1301 | L54: bingzhui_timeline_TD | M54: 1 | N54: 1 | O54: 5 | P54: 3;120;16 | Q54: 2 | U54: =W54*V54 -> 80 | V54: 20 | W54: 4
A55: 13015 | C55: 150 | F55: 碧落幽冥劲 | G55: 发出{0}道寒气冰锥，对敌人照成{1}%伤害，每到冰锥有{2}%概率对敌人施加1层寒气 | H55: 4 | I55: icon_skill_40002 | J55: S1301 | K55: 1301 | L55: bingzhui_timeline_TD | M55: 1 | N55: 1 | O55: 6 | P55: 3;120;16 | Q55: 2 | U55: =W55*V55 -> 80 | V55: 20 | W55: 4
A56: 13016 | C56: 160 | F56: 碧落幽冥劲 | G56: 发出{0}道寒气冰锥，对敌人照成{1}%伤害，每到冰锥有{2}%概率对敌人施加1层寒气 | H56: 4 | I56: icon_skill_40002 | J56: S1301 | K56: 1301 | L56: bingzhui_timeline_TD | M56: 1 | N56: 1 | O56: 7 | P56: 3;120;16 | Q56: 2 | U56: =W56*V56 -> 80 | V56: 20 | W56: 4
A57: 13017 | C57: 170 | F57: 碧落幽冥劲 | G57: 发出{0}道寒气冰锥，对敌人照成{1}%伤害，每到冰锥有{2}%概率对敌人施加1层寒气 | H57: 4 | I57: icon_skill_40002 | J57: S1301 | K57: 1301 | L57: bingzhui_timeline_TD | M57: 1 | N57: 1 | O57: 8 | P57: 3;120;16 | Q57: 2 | U57: =W57*V57 -> 80 | V57: 20 | W57: 4
A58: 13018 | C58: 180 | F58: 碧落幽冥劲 | G58: 发出{0}道寒气冰锥，对敌人照成{1}%伤害，每到冰锥有{2}%概率对敌人施加1层寒气 | H58: 4 | I58: icon_skill_40002 | J58: S1301 | K58: 1301 | L58: bingzhui_timeline_TD | M58: 1 | N58: 1 | O58: 9 | P58: 3;120;16 | Q58: 2 | U58: =W58*V58 -> 80 | V58: 20 | W58: 4
A59: 13019 | C59: 190 | F59: 碧落幽冥劲 | G59: 发出{0}道寒气冰锥，对敌人照成{1}%伤害，每到冰锥有{2}%概率对敌人施加1层寒气 | H59: 4 | I59: icon_skill_40002 | J59: S1301 | K59: 1301 | L59: bingzhui_timeline_TD | M59: 1 | N59: 1 | O59: 10 | P59: 3;120;16 | Q59: 2 | U59: =W59*V59 -> 80 | V59: 20 | W59: 4
B61: 功法强化效果区域
A62: =K62*10+O62-1 -> 5010010 | C62: 100 | F62: 法宝秘籍 | G62: 法宝秘籍：后方槽位第一个技能在击中目前时为法宝提供{0}%充能 | H62: 0 | I62: icon_skill_30005 | J62: =CONCATENATE("S",K62) -> S501001 | K62: 501001 | M62: 1 | N62: 2 | O62: 1 | P62: 15 | Q62: 1
A63: =K63*10+O63-1 -> 5010011 | C63: 110 | F63: 法宝秘籍 | G63: 法宝秘籍：后方槽位第一个技能在击中目前时为法宝提供{0}%充能 | H63: 0 | I63: icon_skill_30005 | J63: =CONCATENATE("S",K63) -> S501001 | K63: 501001 | M63: 1 | N63: 2 | O63: 2 | P63: 15 | Q63: 1
A64: 5010012 | C64: 120 | F64: 法宝秘籍 | G64: 法宝秘籍：后方槽位第一个技能在击中目前时为法宝提供{0}%充能 | H64: 0 | I64: icon_skill_30005 | J64: S501001 | K64: 501001 | M64: 1 | N64: 2 | O64: 3 | P64: 15 | Q64: 1
A65: 5010013 | C65: 130 | F65: 法宝秘籍 | G65: 法宝秘籍：后方槽位第一个技能在击中目前时为法宝提供{0}%充能 | H65: 0 | I65: icon_skill_30005 | J65: S501001 | K65: 501001 | M65: 1 | N65: 2 | O65: 4 | P65: 15 | Q65: 1
A66: 5010014 | C66: 140 | F66: 法宝秘籍 | G66: 法宝秘籍：后方槽位第一个技能在击中目前时为法宝提供{0}%充能 | H66: 0 | I66: icon_skill_30005 | J66: S501001 | K66: 501001 | M66: 1 | N66: 2 | O66: 5 | P66: 15 | Q66: 1
A67: 5010015 | C67: 150 | F67: 法宝秘籍 | G67: 法宝秘籍：后方槽位第一个技能在击中目前时为法宝提供{0}%充能 | H67: 0 | I67: icon_skill_30005 | J67: S501001 | K67: 501001 | M67: 1 | N67: 2 | O67: 6 | P67: 15 | Q67: 1
A68: 5010016 | C68: 160 | F68: 法宝秘籍 | G68: 法宝秘籍：后方槽位第一个技能在击中目前时为法宝提供{0}%充能 | H68: 0 | I68: icon_skill_30005 | J68: S501001 | K68: 501001 | M68: 1 | N68: 2 | O68: 7 | P68: 15 | Q68: 1
A69: 5010017 | C69: 170 | F69: 法宝秘籍 | G69: 法宝秘籍：后方槽位第一个技能在击中目前时为法宝提供{0}%充能 | H69: 0 | I69: icon_skill_30005 | J69: S501001 | K69: 501001 | M69: 1 | N69: 2 | O69: 8 | P69: 15 | Q69: 1
A70: 5010018 | C70: 180 | F70: 法宝秘籍 | G70: 法宝秘籍：后方槽位第一个技能在击中目前时为法宝提供{0}%充能 | H70: 0 | I70: icon_skill_30005 | J70: S501001 | K70: 501001 | M70: 1 | N70: 2 | O70: 9 | P70: 15 | Q70: 1
A71: 5010019 | C71: 190 | F71: 法宝秘籍 | G71: 法宝秘籍：后方槽位第一个技能在击中目前时为法宝提供{0}%充能 | H71: 0 | I71: icon_skill_30005 | J71: S501001 | K71: 501001 | M71: 1 | N71: 2 | O71: 10 | P71: 15 | Q71: 1
A73: =K73*10+O73-1 -> 5011010 | C73: 100 | F73: 双生面具 | G73: 前后方法宝如果相生则双生效果增强{0}%，（具体效果值取决于技能） | H73: 0 | I73: icon_skill_20004 | J73: =CONCATENATE("S",K73) -> S501101 | K73: 501101 | M73: 1 | N73: 2 | O73: 1 | P73: 15 | Q73: 1
A74: =K74*10+O74-1 -> 5011011 | C74: 110 | F74: 双生面具 | G74: 前后方法宝如果相生则双生效果增强{0}%，（具体效果值取决于技能） | H74: 0 | I74: icon_skill_20004 | J74: =CONCATENATE("S",K74) -> S501101 | K74: 501101 | M74: 1 | N74: 2 | O74: 2 | P74: 15 | Q74: 1
A75: 5011012 | C75: 120 | F75: 双生面具 | G75: 前后方法宝如果相生则双生效果增强{0}%，（具体效果值取决于技能） | H75: 0 | I75: icon_skill_20004 | J75: S501101 | K75: 501101 | M75: 1 | N75: 2 | O75: 3 | P75: 15 | Q75: 1
A76: 5011013 | C76: 130 | F76: 双生面具 | G76: 前后方法宝如果相生则双生效果增强{0}%，（具体效果值取决于技能） | H76: 0 | I76: icon_skill_20004 | J76: S501101 | K76: 501101 | M76: 1 | N76: 2 | O76: 4 | P76: 15 | Q76: 1
A77: 5011014 | C77: 140 | F77: 双生面具 | G77: 前后方法宝如果相生则双生效果增强{0}%，（具体效果值取决于技能） | H77: 0 | I77: icon_skill_20004 | J77: S501101 | K77: 501101 | M77: 1 | N77: 2 | O77: 5 | P77: 15 | Q77: 1
A78: 5011015 | C78: 150 | F78: 双生面具 | G78: 前后方法宝如果相生则双生效果增强{0}%，（具体效果值取决于技能） | H78: 0 | I78: icon_skill_20004 | J78: S501101 | K78: 501101 | M78: 1 | N78: 2 | O78: 6 | P78: 15 | Q78: 1
A79: 5011016 | C79: 160 | F79: 双生面具 | G79: 前后方法宝如果相生则双生效果增强{0}%，（具体效果值取决于技能） | H79: 0 | I79: icon_skill_20004 | J79: S501101 | K79: 501101 | M79: 1 | N79: 2 | O79: 7 | P79: 15 | Q79: 1
A80: 5011017 | C80: 170 | F80: 双生面具 | G80: 前后方法宝如果相生则双生效果增强{0}%，（具体效果值取决于技能） | H80: 0 | I80: icon_skill_20004 | J80: S501101 | K80: 501101 | M80: 1 | N80: 2 | O80: 8 | P80: 15 | Q80: 1
A81: 5011018 | C81: 180 | F81: 双生面具 | G81: 前后方法宝如果相生则双生效果增强{0}%，（具体效果值取决于技能） | H81: 0 | I81: icon_skill_20004 | J81: S501101 | K81: 501101 | M81: 1 | N81: 2 | O81: 9 | P81: 15 | Q81: 1
A82: 5011019 | C82: 190 | F82: 双生面具 | G82: 前后方法宝如果相生则双生效果增强{0}%，（具体效果值取决于技能） | H82: 0 | I82: icon_skill_20004 | J82: S501101 | K82: 501101 | M82: 1 | N82: 2 | O82: 10 | P82: 15 | Q82: 1
A84: =K84*10+O84-1 -> 5012010 | C84: 100 | F84: 火灵丹 | G84: 每层经过火经脉时使火系功法伤害提升{0}%，最多叠加{1}层 | H84: 0 | I84: icon_skill_10002 | J84: =CONCATENATE("S",K84) -> S501201 | K84: 501201 | M84: 1 | N84: 2 | O84: 1 | P84: 10;10 | Q84: 1
A85: =K85*10+O85-1 -> 5012011 | C85: 110 | F85: 火灵丹 | G85: 每层经过火经脉时使火系功法伤害提升{0}%，最多叠加{1}层 | H85: 0 | I85: icon_skill_10002 | J85: =CONCATENATE("S",K85) -> S501201 | K85: 501201 | M85: 1 | N85: 2 | O85: 2 | P85: 10;10 | Q85: 1
A86: 5012012 | C86: 120 | F86: 火灵丹 | G86: 每层经过火经脉时使火系功法伤害提升{0}%，最多叠加{1}层 | H86: 0 | I86: icon_skill_10002 | J86: S501201 | K86: 501201 | M86: 1 | N86: 2 | O86: 3 | P86: 10;10 | Q86: 1
A87: 5012013 | C87: 130 | F87: 火灵丹 | G87: 每层经过火经脉时使火系功法伤害提升{0}%，最多叠加{1}层 | H87: 0 | I87: icon_skill_10002 | J87: S501201 | K87: 501201 | M87: 1 | N87: 2 | O87: 4 | P87: 10;10 | Q87: 1
A88: 5012014 | C88: 140 | F88: 火灵丹 | G88: 每层经过火经脉时使火系功法伤害提升{0}%，最多叠加{1}层 | H88: 0 | I88: icon_skill_10002 | J88: S501201 | K88: 501201 | M88: 1 | N88: 2 | O88: 5 | P88: 10;10 | Q88: 1
A89: 5012015 | C89: 150 | F89: 火灵丹 | G89: 每层经过火经脉时使火系功法伤害提升{0}%，最多叠加{1}层 | H89: 0 | I89: icon_skill_10002 | J89: S501201 | K89: 501201 | M89: 1 | N89: 2 | O89: 6 | P89: 10;10 | Q89: 1
A90: 5012016 | C90: 160 | F90: 火灵丹 | G90: 每层经过火经脉时使火系功法伤害提升{0}%，最多叠加{1}层 | H90: 0 | I90: icon_skill_10002 | J90: S501201 | K90: 501201 | M90: 1 | N90: 2 | O90: 7 | P90: 10;10 | Q90: 1
A91: 5012017 | C91: 170 | F91: 火灵丹 | G91: 每层经过火经脉时使火系功法伤害提升{0}%，最多叠加{1}层 | H91: 0 | I91: icon_skill_10002 | J91: S501201 | K91: 501201 | M91: 1 | N91: 2 | O91: 8 | P91: 10;10 | Q91: 1
A92: 5012018 | C92: 180 | F92: 火灵丹 | G92: 每层经过火经脉时使火系功法伤害提升{0}%，最多叠加{1}层 | H92: 0 | I92: icon_skill_10002 | J92: S501201 | K92: 501201 | M92: 1 | N92: 2 | O92: 9 | P92: 10;10 | Q92: 1
A93: 5012019 | C93: 190 | F93: 火灵丹 | G93: 每层经过火经脉时使火系功法伤害提升{0}%，最多叠加{1}层 | H93: 0 | I93: icon_skill_10002 | J93: S501201 | K93: 501201 | M93: 1 | N93: 2 | O93: 10 | P93: 10;10 | Q93: 1
A97: 5013011 | C97: 100 | F97: 巨大化 | G97: 后方槽位第一个技能体型巨大化，且在对碰中受到伤害减少{0}% | H97: 0 | I97: icon_skill_20002 | J97: S501301 | K97: 501301 | M97: 1 | N97: 2 | O97: 1 | P97: 15 | Q97: 1
A98: 5014011 | C98: 100 | F98: 极速齿轮 | G98: 后槽位技能在催动时获得转盘加速{0}%,持续{1}秒 | H98: 0 | I98: icon_skill_10004 | J98: S501401 | K98: 501401 | M98: 1 | N98: 2 | O98: 1 | P98: 15;6 | Q98: 1
A99: 5015011 | C99: 100 | F99: 崩脉决 | G99: 前方功法照成伤害时有{0}%概率施加一层对应属性的伤势 | H99: 0 | I99: icon_skill_20001 | J99: S501501 | K99: 501501 | M99: 1 | N99: 2 | O99: 1 | P99: 30 | Q99: 1
B100: 怪物功法区域
A101: 810011 | C101: 100 | F101: 怪物技能1 | H101: 1 | J101: S2001 | K101: 81001 | L101: gf_mozhan_timeline_TD | M101: 1 | N101: 1 | O101: 1 | P101: 100 | Q101: 0
A102: 820011 | C102: 100 | F102: 怪物技能1 | H102: 2 | J102: S2001 | K102: 82001 | L102: gf_mozhan_timeline_TD | M102: 1 | N102: 1 | O102: 1 | P102: 100 | Q102: 0
A103: 830011 | C103: 100 | F103: 怪物技能1 | H103: 8 | J103: S2001 | K103: 83001 | L103: gf_mozhan_timeline_TD | M103: 1 | N103: 1 | O103: 1 | P103: 100 | Q103: 0
A104: 840011 | C104: 100 | F104: 怪物技能1 | H104: 16 | J104: S2001 | K104: 84001 | L104: gf_mozhan_timeline_TD | M104: 1 | N104: 1 | O104: 1 | P104: 100 | Q104: 0
A105: 850011 | C105: 100 | F105: 怪物技能1 | H105: 1 | J105: S2001 | K105: 85001 | L105: gf_mozhan_timeline_TD | M105: 1 | N105: 1 | O105: 1 | P105: 100 | Q105: 0
B106: 法宝区域
A107: 9010011 | C107: 100 | F107: 法宝测试技能 | G107: 测试法宝功能脚本 | H107: 1 | I107: icon_skill_10003 | J107: FS901001 | K107: 901001 | M107: 1 | N107: 3 | O107: 1 | P107: 100 | Q107: 1
A108: 9010021 | C108: 100 | F108: 翡翠葫芦 | G108: 战场区域形成一个域。敌人的功法弹道进入域后将降低敌人{0}%的功法弹道速度，持续{1}秒 | H108: 1 | I108: icon_skill_10003 | J108: FS901002 | K108: 901002 | M108: 1 | N108: 3 | O108: 1 | P108: 50;9 | Q108: 1
A109: 9010031 | C109: 100 | F109: 玄龟盾 | G109: 前方形成一个土系防御盾，抵挡相当于自身生命上限{0}%的伤害 | H109: 1 | I109: icon_skill_10003 | J109: FS901003 | K109: 901003 | M109: 1 | N109: 3 | O109: 1 | P109: 30 | Q109: 1
A110: 9010041 | C110: 100 | F110: 九幽镇魂瓶 | G110: 对敌人照成伤害，并随机封锁敌人{0}个法宝，让其{1}秒内不能使用和不能充能 | H110: 1 | I110: icon_skill_10003 | J110: FS901004 | K110: 901004 | M110: 1 | N110: 3 | O110: 1 | P110: 1;9 | Q110: 2
A111: 9010051 | C111: 100 | F111: 神龙鼎 | G111: 对敌人照成伤害，使敌人五行混乱。敌人的功法每次使用功法都将使用最低灵根属性作为伤害计算，持续{0}秒 | H111: 1 | I111: icon_skill_10003 | J111: FS901005 | K111: 901005 | M111: 1 | N111: 3 | O111: 1 | P111: 9 | Q111: 1
A112: 9010061 | C112: 100 | F112: 破天斧 | G112: 无视敌人灵根，对敌人造成{0}%伤害，同时让五行伤势+{1} | H112: 1 | I112: icon_skill_10003 | J112: FS901006 | K112: 901006 | M112: 1 | N112: 3 | O112: 1 | P112: 100;5 | Q112: 1
A113: 9010071 | C113: 100 | F113: 琉璃宝塔 | G113: 对敌人照成水系伤害，封锁敌人筋脉随机{0}个格子持续{1}秒 | H113: 1 | I113: icon_skill_10003 | J113: FS901007 | K113: 901007 | M113: 1 | N113: 3 | O113: 1 | P113: 3;6 | Q113: 2
A114: 9010081 | C114: 100 | F114: 玉莲守心灯 | G114: 一盏明灯围绕玩家，{0}秒内抵消所有负面效果，每{1}秒触发1次。 | H114: 1 | I114: icon_skill_10003 | J114: FS901008 | K114: 901008 | M114: 1 | N114: 3 | O114: 1 | P114: 6;30 | Q114: 1
B115: 大道规则技能区域
A116: 601011 | C116: 100 | F116: 星辰道 | G116: 每次释放功法时获得{0}点能量，{1}点能量后提升{2}%转盘速度和{3}%攻击速度，持续{4}秒。 | H116: 1 | I116: icon_skill_10003 | J116: DS60101 | K116: 60101 | M116: 1 | N116: 4 | O116: 1 | P116: 10;100;50;50;9 | Q116: 0
A117: 601021 | C117: 100 | F117: 生衍道 | G117: 功法拥有生息之能，每次使用功法能获得1对应属性的充能，充能满后获得对应属性的加成 {0}金：提升{1}%攻击力 ,最大{2}% {0}木：恢复{3}%生命 {0}水：治疗最严重的伤势，使其伤势-{4} {0}火：功法强度提升{5}%，最大{6}% {0}土：玩家防御提升{7}%，最大{8}% | H117: 1 | I117: icon_skill_10003 | J117: DS60102 | K117: 60102 | M117: 1 | N117: 4 | O117: 1 | P117: 3;3;30;5;1;3;30;3;30 | Q117: 0
A118: 601031 | C118: 100 | F118: 玄黄道 | G118: 每次使用功法时在当前位置留下一道属性印记，下一个放上来的功法如果和以前功法相生则功法效果提升{0}%，每次使用功法时都会治疗对应相生属性的{1}伤势。（均衡性功法搭配，转盘改变，变为金、水、木、火、土） | H118: 1 | I118: icon_skill_10003 | J118: DS60103 | K118: 60103 | M118: 1 | N118: 4 | O118: 1 | P118: 30;1 | Q118: 0

Sheet SkillPowerupConfig
A1: ID | B1: MainPower | C1: SkillPower1
A2: int | B2: int | C2: float
A4: 等级 | B4: 功法对拼标准强度 | C4: 标准强度百分比
A5: 1 | B5: 100 | C5: 100 | D5: 造成100%攻击力+200点伤害 | G5: {0} | H5: 1 | I5: 2
A6: 2 | B6: 120 | C6: 110
A7: 3 | B7: 140 | C7: 120
A8: 4 | B8: 160 | C8: 130
A9: 5 | B9: 180 | C9: 140
A10: 6 | B10: 200 | C10: 150
A11: 7 | B11: 220 | C11: 160
A12: 8 | B12: 240 | C12: 170
A13: 9 | B13: 260 | C13: 180
A14: 10 | B14: 280 | C14: 190
A15: 11 | B15: 300 | C15: 200
A16: 12 | B16: 320 | C16: 210
A17: 13 | B17: 340 | C17: 220
A18: 14 | B18: 360 | C18: 230
A19: 15 | B19: 380 | C19: 240
A20: 16 | B20: 400 | C20: 250
A21: 17 | B21: 420 | C21: 260
A22: 18 | B22: 440 | C22: 270
A23: 19 | B23: 460 | C23: 280
A24: 20 | B24: 480 | C24: 290
A25: 21 | B25: 500 | C25: 300
A26: 22 | B26: 520 | C26: 310
A27: 23 | B27: 540 | C27: 320
A28: 24 | B28: 560 | C28: 330
A29: 25 | B29: 580 | C29: 340
A30: 26 | B30: 600 | C30: 350
A31: 27 | B31: 620 | C31: 360
A32: 28 | B32: 640 | C32: 370
A33: 29 | B33: 660 | C33: 380
A34: 30 | B34: 680 | C34: 390
A35: 31 | B35: 700 | C35: 400
A36: 32 | B36: 720 | C36: 410
A37: 33 | B37: 740 | C37: 420
A38: 34 | B38: 760 | C38: 430
A39: 35 | B39: 780 | C39: 440
A40: 36 | B40: 800 | C40: 450
A41: 37 | B41: 820 | C41: 460
A42: 38 | B42: 840 | C42: 470
A43: 39 | B43: 860 | C43: 480
A44: 40 | B44: 880 | C44: 490
A45: 41 | B45: 900 | C45: 500
A46: 42 | B46: 920 | C46: 510
A47: 43 | B47: 940 | C47: 520
A48: 44 | B48: 960 | C48: 530
A49: 45 | B49: 980 | C49: 540
A50: 46 | B50: 1000 | C50: 550
A51: 47 | B51: 1020 | C51: 560
A52: 48 | B52: 1040 | C52: 570
A53: 49 | B53: 1060 | C53: 580
A54: 50 | B54: 1080 | C54: 590
A55: 51 | B55: 1100 | C55: 600
A56: 52 | B56: 1120 | C56: 610
A57: 53 | B57: 1140 | C57: 620
A58: 54 | B58: 1160 | C58: 630
A59: 55 | B59: 1180 | C59: 640
A60: 56 | B60: 1200 | C60: 650
A61: 57 | B61: 1220 | C61: 660
A62: 58 | B62: 1240 | C62: 670
A63: 59 | B63: 1260 | C63: 680
A64: 60 | B64: 1280 | C64: 690

Sheet 技能设计
